bitfinex-derivatives/quotes_ETHF0:USTF0_20250831
["timestamp","ask_amount","ask_price","bid_price","bid_amount"]
[1756684100809,0.5258,4391.9,4391.2,3.2078]
[1756684101010,0.5258,4391.3,4391.2,3.7284]
[1756684101212,0.5258,4391.3,4391.2,3.9674]
[1756684101213,1.2877,4391.3,4391.2,3.9674]
[1756684101412,0.7619,4391.2,4390.9,0.8337]
[1756684101712,3.9697,4391.6,4391.0,0.239]
[1756684102210,0.5258,4391.1,4391.0,0.239]
[1756684102410,1.2877,4391.1,4391.0,0.239]
[1756684102714,1.2877,4391.1,4391.0,1.5933]
[1756684102916,0.5258,4391.1,4391.0,1.5933]
[1756684104009,0.7619,4391.5,4391.0,1.5933]
[1756684104010,3.2078,4391.6,4391.0,0.7596]
[1756684104211,0.7619,4391.5,4391.0,0.239]
[1756684104711,0.7619,4391.5,4391.1,0.8337]
[1756684104910,3.2078,4391.6,4391.0,0.239]
[1756684105115,0.7619,4391.5,4391.1,0.8337]
[1756684105318,1.2877,4391.2,4391.1,1.3543]
[1756684105714,0.7619,4391.5,4391.2,0.8337]
[1756684105914,0.5258,4391.5,4391.0,0.239]
[1756684106120,1.19049665,4393.4,4390.5,32.805]
[1756684106121,0.5258,4390.7,4390.5,32.805]
[1756684106323,0.7619,4390.6,4390.5,32.805]
[1756684106716,1.2877,4390.3,4389.7,0.8337]
[1756684106914,0.5258,4389.9,4389.8,0.239]
[1756684107115,1.2877,4389.9,4389.8,0.239]
[1756684108412,1.2877,4389.9,4389.8,1.5933]
[1756684108817,1.2877,4389.9,4389.8,0.239]
[1756684110018,0.7619,4390.4,4389.8,0.7596]
[1756684110213,1.19049665,4392.0,4390.6,1.3543]
[1756684110214,0.7619,4391.2,4390.6,1.3543]
[1756684110411,0.7619,4391.5,4391.2,0.5206]
[1756684110718,3.2078,4392.0,4391.4,0.8337]
[1756684110719,3.9697,4392.0,4391.4,0.8337]
[1756684111224,1.2877,4391.0,4390.9,40.8]
[1756684111417,0.7619,4390.9,4390.8,32.8]
[1756684111619,0.7619,4390.9,4390.8,33.8727]
[1756684112217,3.2078,4391.5,4391.4,0.8337]
[1756684112417,4.4955,4391.5,4391.4,0.239]
[1756684112623,4.4955,4391.5,4391.4,1.5933]
[1756684112925,4.4955,4391.5,4391.4,0.239]
[1756684113220,1.2877,4391.5,4391.4,1.5933]
[1756684114219,3.2078,4392.0,4391.5,0.8337]
[1756684114425,3.9697,4392.0,4391.9,1.3543]
[1756684114625,3.2078,4392.0,4391.9,1.5933]
[1756684115223,0.7619,4392.5,4391.9,1.5933]
[1756684117319,1.2877,4392.0,4391.4,3.2078]
[1756684117521,0.5258,4391.6,4391.5,0.239]
[1756684117720,0.7619,4391.5,4391.4,4.5621]
[1756684117928,0.8038,4391.9,4391.4,4.8011]
[1756684118128,0.8038,4392.9,4391.5,0.7981]
[1756684118433,1.03148001,4392.9,4391.5,0.7981]
[1756684118632,0.8038,4392.3,4391.5,0.7981]
[1756684121039,1.319,4391.6,4391.5,1.3249]
[1756684121236,0.5152,4391.6,4391.5,0.239]
[1756684121741,1.319,4391.5,4391.4,3.2078]
[1756684122132,1.319,4391.5,4391.4,3.4468]
[1756684122834,1.319,4391.5,4391.4,4.7717]
[1756684123340,0.8038,4391.9,4391.8,1.3249]
[1756684123542,3.2078,4392.4,4391.8,1.5639]
[1756684123736,3.2078,4392.4,4391.8,0.7658]
[1756684123932,0.8038,4392.3,4391.8,0.7658]
[1756684124138,0.5152,4391.9,4391.8,0.7658]
[1756684124343,1.319,4391.9,4391.8,0.7658]
[1756684125341,1.319,4391.9,4391.8,1.5639]
[1756684125836,1.319,4391.9,4391.8,0.7658]
[1756684126037,1.319,4391.9,4391.8,0.239]
[1756684126238,1.319,4391.9,4391.8,1.5639]
[1756684126640,1.319,4391.9,4391.8,0.7658]
[1756684126837,0.5152,4391.6,4391.5,0.7981]
[1756684127037,1.319,4391.6,4391.5,1.5639]
[1756684128738,0.5152,4391.6,4391.5,1.5639]
[1756684130142,0.8038,4392.3,4391.6,0.7981]
[1756684131943,1.319,4392.3,4392.2,1.3249]
[1756684132144,1.319,4392.3,4392.2,1.5639]
[1756684132945,3.2078,4392.4,4392.3,0.7981]
[1756684133149,3.2078,4392.4,4392.3,1.3249]
[1756684135053,1.319,4393.7,4393.6,1.3249]
[1756684135244,1.319,4393.7,4393.6,1.5639]
[1756684136353,1.319,4393.7,4393.6,0.7658]
[1756684136747,1.319,4393.7,4393.6,1.5639]
[1756684136947,0.8038,4394.3,4393.7,0.7981]
[1756684137147,1.319,4394.3,4394.2,0.5268]
[1756684137450,1.319,4394.3,4394.2,0.7658]
[1756684137751,0.5152,4394.3,4394.2,1.5639]
[1756684138152,4.5268,4395.0,4394.9,0.5268]
[1756684138345,4.5268,4395.0,4394.9,0.7658]
[1756684138748,4.5268,4395.0,4394.9,0.239]
[1756684139653,1.319,4395.0,4394.9,0.239]
[1756684139954,8.75433,4395.0,4393.6,0.7981]
[1756684140160,0.5152,4393.7,4393.6,0.7981]
[1756684140346,1.319,4393.7,4393.6,0.239]
[1756684140548,0.5152,4393.7,4393.5,3.2078]
[1756684140745,0.8038,4393.5,4392.9,3.2078]
[1756684140952,0.5152,4393.1,4393.0,0.7658]
[1756684141148,1.319,4393.1,4393.0,1.5639]
[1756684141947,1.319,4393.1,4393.0,0.5268]
[1756684142151,0.8038,4393.8,4393.1,0.7981]
[1756684142361,0.8038,4393.8,4393.7,1.3249]
[1756684142548,0.8038,4393.8,4393.7,1.5629]
[1756684142754,0.8038,4394.3,4393.7,1.5629]
[1756684142953,0.8038,4394.3,4393.8,0.7981]
[1756684143356,1.319,4394.3,4394.2,1.3249]
[1756684143760,1.319,4394.3,4394.2,0.238]
[1756684144452,1.319,4394.3,4394.2,1.5629]
[1756684144648,0.8038,4394.9,4394.3,0.7981]
[1756684145756,1.319,4394.9,4394.8,1.3249]
[1756684145957,1.319,4394.9,4394.8,1.5629]
[1756684146260,0.5152,4394.9,4394.8,1.5629]
[1756684146454,1.319,4394.9,4394.8,1.5629]
[1756684147751,0.5152,4394.3,4394.2,1.3249]
[1756684147959,0.8038,4394.3,4394.2,1.5629]
[1756684148260,0.7409,4395.0,4394.2,1.5629]
[1756684148657,0.5202,4393.9,4393.8,0.7843]
[1756684148855,1.2611,4393.6,4393.5,3.2078]
[1756684149159,1.2611,4393.6,4393.5,4.7718]
[1756684149360,0.7409,4394.5,4393.5,4.5338]
[1756684149562,1.2611,4393.6,4393.5,3.2078]
[1756684149760,1.2611,4393.6,4393.0,0.7843]
[1756684149962,1.2611,4392.9,4392.8,3.2078]
[1756684150260,1.2611,4392.9,4392.8,4.7718]
[1756684151156,0.7409,4393.3,4392.8,4.7718]
[1756684151453,0.7409,4393.7,4392.9,0.7843]
[1756684151650,0.7409,4393.7,4393.0,0.238]
[1756684151856,3.2078,4393.8,4392.8,3.2078]
[1756684151857,1.2611,4393.1,4392.8,3.2078]
[1756684152055,1.2611,4393.0,4392.9,0.238]
[1756684152363,1.2611,4393.0,4392.9,1.564]
[1756684152560,1.2611,4393.0,4392.9,0.238]
[1756684152862,3.2078,4393.3,4392.6,32.778]
[1756684152863,0.5202,4392.7,4392.6,32.778]
[1756684153055,1.2611,4392.7,4392.6,32.778]
[1756684153456,3.2078,4393.3,4392.6,37.8003]
[1756684153457,0.7409,4393.3,4392.6,37.8003]
[1756684153655,0.5202,4393.3,4393.2,1.326]
[1756684153954,1.2611,4393.3,4393.2,1.564]
[1756684154156,3.2078,4393.9,4393.2,0.7797]
[1756684154355,1.2611,4393.9,4393.8,1.326]
[1756684154559,1.2611,4393.9,4393.8,1.564]
[1756684154862,3.2078,4394.5,4393.8,0.238]
[1756684155061,0.7409,4394.4,4393.8,1.0223]
[1756684155455,1.2611,4394.4,4394.3,1.326]
[1756684155755,1.2611,4394.4,4394.3,1.564]
[1756684156256,0.5202,4394.4,4394.3,1.564]
[1756684156460,0.7409,4395.0,4394.3,1.564]
[1756684156662,3.2078,4395.1,4393.8,3.2078]
[1756684156663,0.5202,4394.4,4393.8,3.2078]
[1756684156856,0.5202,4394.0,4393.9,0.5417]
[1756684157056,1.2611,4394.0,4393.9,0.238]
[1756684158857,1.2611,4394.0,4393.4,0.7843]
[1756684159064,1.2611,4394.0,4393.5,0.238]
[1756684159265,0.7409,4394.2,4393.5,1.0223]
[1756684159763,0.7409,4394.2,4393.6,0.7843]
[1756684160263,1.2611,4394.2,4394.1,0.5417]
[1756684160458,1.2611,4394.2,4394.1,0.7797]
[1756684160862,1.2611,4394.2,4394.1,0.238]
[1756684161062,1.2611,4394.2,4393.6,0.7843]
[1756684161363,1.2611,4394.2,4394.1,0.238]
[1756684162061,1.2611,4394.2,4393.6,0.7843]
[1756684162263,1.2611,4394.2,4393.7,0.238]
[1756684162461,0.7409,4394.1,4393.2,0.7843]
[1756684162666,0.7409,4393.7,4392.9,0.7843]
[1756684162865,0.7409,4393.7,4393.1,0.7843]
[1756684163066,1.2611,4393.2,4393.1,0.5417]
[1756684163367,1.2611,4393.2,4393.1,1.564]
[1756684163969,1.2611,4393.2,4393.1,0.238]
[1756684164162,0.5202,4393.2,4392.7,3.2078]
[1756684164356,0.5202,4392.9,4392.8,1.564]
[1756684164561,0.5202,4392.9,4392.7,3.2078]
[1756684164863,0.7409,4393.7,4392.8,1.564]
[1756684165068,0.7409,4393.7,4392.9,0.7843]
[1756684165366,1.2611,4393.7,4393.6,1.326]
[1756684165566,1.2611,4393.7,4393.6,1.564]
[1756684166758,1.2611,4393.7,4393.6,0.7797]
[1756684167762,0.5202,4392.8,4392.7,4.5338]
[1756684167961,1.2611,4392.8,4392.7,3.4458]
[1756684168170,0.5202,4392.8,4392.7,4.7718]
[1756684168472,1.2611,4393.2,4393.1,0.5417]
[1756684168657,1.2611,4393.2,4393.1,0.7797]
[1756684169165,1.2611,4393.1,4393.0,1.326]
[1756684169366,1.2611,4393.1,4393.0,1.564]
[1756684170269,1.2611,4392.7,4392.6,32.778]
[1756684170464,1.2611,4392.7,4392.6,33.016]
[1756684170666,0.5202,4391.9,4391.8,1.326]
[1756684170866,0.7409,4392.3,4391.8,0.7797]
[1756684171167,0.7409,4392.8,4391.9,0.7843]
[1756684172163,0.5202,4392.8,4392.7,0.5417]
[1756684172363,1.2611,4392.8,4392.7,1.564]
[1756684172662,1.2611,4392.8,4392.7,0.238]
[1756684173666,0.5202,4392.8,4392.1,3.2078]
[1756684173866,1.2611,4392.8,4392.2,1.0223]
[1756684174365,0.5202,4392.8,4392.2,1.0223]
[1756684174568,0.7409,4392.7,4392.2,1.0223]
[1756684174766,1.2611,4392.3,4392.2,1.564]
[1756684175365,1.2611,4392.3,4392.2,1.326]
[1756684175567,1.2611,4392.3,4392.2,0.7797]
[1756684176169,1.2611,4392.3,4391.9,0.7843]
[1756684176468,1.2611,4392.1,4392.0,0.5417]
[1756684176673,1.2611,4392.1,4392.0,0.7797]
[1756684177072,1.2611,4392.1,4392.0,0.5417]
[1756684177367,1.2611,4391.7,4391.6,3.2078]
[1756684177572,1.2611,4391.7,4391.6,4.7718]
[1756684177771,1.2611,4391.7,4391.6,4.5338]
[1756684178073,1.2611,4391.7,4391.6,4.7718]
[1756684178273,1.2611,4391.7,4391.2,32.78]
[1756684178475,1.2364,4391.3,4391.2,32.78]
[1756684178670,1.2364,4391.3,4391.2,33.018]
[1756684179971,3.2078,4391.6,4391.2,33.018]
[1756684180171,1.19049665,4393.9,4393.8,1.2467]
[1756684180476,1.2364,4393.9,4393.8,44.27500614]
[1756684180678,1.2364,4393.9,4393.8,3.47500614]
[1756684180874,1.2364,4393.9,4393.8,3.4488]
[1756684181270,1.2364,4393.9,4393.8,3.2078]
[1756684181474,1.2364,4393.9,4393.8,3.938]
[1756684181676,1.2364,4393.9,4393.8,4.5087]
[1756684182676,1.2364,4393.9,4393.8,3.938]
[1756684184382,1.2364,4393.9,4393.8,3.4488]
[1756684185583,1.2364,4393.9,4393.8,3.2078]
[1756684185778,1.2364,4393.9,4393.8,3.4488]
[1756684186279,1.2364,4393.9,4393.8,4.5087]
[1756684186585,3.2078,4394.5,4393.8,3.7785]
[1756684186785,1.2364,4393.9,4393.8,3.2078]
[1756684186985,1.2364,4393.9,4393.8,3.4478]
[1756684187783,1.2364,4393.9,4393.8,3.2078]
[1756684187983,1.2364,4393.9,4393.8,3.4478]
[1756684188589,1.2364,4393.9,4393.8,4.5077]
[1756684188884,1.2364,4393.9,4393.8,3.937]
[1756684189386,0.7478,4393.9,4393.8,4.5077]
[1756684189688,1.2364,4393.9,4393.8,4.2677]
[1756684189985,1.2364,4393.9,4393.8,3.2078]
[1756684190185,1.2364,4393.9,4393.8,3.937]
[1756684190381,1.2364,4393.9,4393.8,4.5077]
[1756684191084,1.2364,4393.9,4393.8,3.4478]
[1756684191274,1.2364,4393.9,4393.8,3.2078]
[1756684191786,1.2364,4393.9,4393.8,3.4478]
[1756684191981,1.2364,4393.9,4393.8,0.24]
[1756684192588,0.4886,4393.9,4393.8,0.24]
[1756684192790,1.2364,4393.9,4393.8,0.24]
[1756684193788,0.4886,4393.9,4393.8,0.24]
[1756684194185,1.2364,4393.9,4393.8,0.24]
[1756684194585,0.7478,4393.8,4393.3,3.2078]
[1756684194787,0.24,4395.1,4393.1,32.786]
[1756684194788,0.7478,4393.3,4393.1,32.786]
[1756684195088,0.7478,4393.1,4392.8,3.2078]
[1756684195385,3.2078,4394.0,4392.8,3.2078]
[1756684195386,1.2364,4392.9,4392.8,3.2078]
[1756684197893,1.2364,4392.9,4392.7,0.24]
[1756684198493,1.2364,4392.4,4392.3,3.2078]
[1756684198789,1.2364,4391.9,4391.8,3.2078]
[1756684198994,1.2364,4391.9,4391.8,3.4468]
[1756684200189,1.2364,4391.9,4391.8,3.2078]
[1756684200389,1.2364,4391.9,4391.8,3.4468]
[1756684200994,1.2364,4391.4,4391.3,4.2677]
[1756684201295,1.2364,4391.4,4391.3,4.5067]
[1756684201793,1.2364,4391.4,4391.3,4.2677]
[1756684201993,1.2364,4391.4,4391.3,4.5067]
[1756684203291,0.7478,4392.0,4391.9,0.4892]
[1756684203591,3.2078,4393.4,4392.4,0.4892]
[1756684203895,0.7478,4393.3,4392.5,0.8097]
[1756684204102,0.7478,4393.3,4392.6,0.5707]
[1756684204295,0.7478,4393.3,4392.7,0.239]
[1756684204497,0.4886,4392.8,4392.4,3.2078]
[1756684204693,3.6964,4392.8,4392.2,0.239]
[1756684204988,0.7478,4392.7,4392.2,0.239]
[1756684205194,1.2364,4392.3,4392.2,0.4892]
[1756684205391,1.2364,4392.3,4392.2,1.0599]
[1756684206789,0.4886,4392.3,4392.2,1.0599]
[1756684206989,3.2078,4392.8,4392.2,0.4892]
[1756684207184,3.2078,4392.8,4392.1,0.172]
[1756684207496,4.4442,4392.8,4392.7,1.0599]
[1756684207699,3.9556,4393.3,4392.7,0.4892]
[1756684207890,3.2078,4393.3,4393.2,0.4892]
[1756684208089,3.2078,4393.3,4393.2,1.3009]
[1756684208389,1.2587,4393.3,4393.2,1.3009]
[1756684210291,0.5013,4393.3,4393.2,1.3009]
[1756684210493,1.2587,4393.3,4393.2,1.3009]
[1756684210685,1.2587,4393.3,4393.1,3.2078]
[1756684210888,1.2587,4392.7,4392.6,3.7119]
[1756684211094,1.2587,4392.7,4392.6,3.9509]
[1756684211286,0.7574,4393.7,4392.6,4.5236]
[1756684211798,3.2078,4393.8,4392.6,4.5236]
[1756684212099,0.7574,4393.7,4392.7,0.5727]
[1756684212801,0.7574,4393.7,4392.9,0.5727]
[1756684213300,1.2587,4392.7,4392.6,3.2078]
[1756684213502,1.2587,4392.7,4392.6,3.9509]
[1756684213702,1.2587,4392.7,4392.6,3.2078]
[1756684213898,1.2587,4392.7,4392.6,3.4468]
[1756684214100,1.2587,4392.7,4392.6,4.5236]
[1756684214295,1.2587,4392.7,4392.6,3.9509]
[1756684215304,1.2587,4392.7,4392.6,4.5236]
[1756684215501,3.2078,4393.3,4392.6,3.9509]
[1756684215702,0.7574,4393.2,4392.7,0.5727]
[1756684215897,3.2078,4393.3,4392.6,4.0195]
[1756684216094,0.7574,4393.2,4392.6,4.0195]
[1756684216396,3.2078,4393.5,4392.6,3.7805]
[1756684216599,0.5013,4392.8,4392.7,0.7431]
[1756684216798,1.2587,4392.8,4392.7,1.3158]
[1756684217398,1.2587,4392.7,4392.6,3.2078]
[1756684217795,1.2587,4392.7,4392.6,0.239]
[1756684217992,1.2587,4392.7,4392.1,3.2078]
[1756684218202,0.5013,4392.2,4392.1,3.2078]
[1756684218400,1.2587,4392.2,4392.1,3.7119]
[1756684218600,1.2587,4392.2,4392.1,3.9509]
[1756684218895,1.2587,4392.2,4392.1,3.2078]
[1756684219109,0.5013,4392.2,4391.5,0.5727]
[1756684219293,0.5013,4391.2,4390.6,0.5727]
[1756684219493,0.5013,4391.2,4389.7,2.02642045]
[1756684219494,3.2078,4391.1,4390.2,0.5727]
[1756684219798,3.2078,4391.1,4389.2,35.62598863]
[1756684219799,1.2587,4390.0,4389.5,0.239]
[1756684219999,1.2587,4389.7,4389.6,0.5727]
[1756684220294,1.2587,4389.7,4389.4,3.2078]
[1756684220295,0.7574,4389.6,4389.4,3.2078]
[1756684220498,0.7574,4390.3,4389.5,1.0768]
[1756684220701,0.7574,4390.3,4389.6,0.239]
[1756684221397,0.7574,4390.3,4390.2,0.5041]
[1756684221598,0.239,4390.8,4390.2,0.5041]
[1756684221802,0.5013,4390.3,4390.2,0.5041]
[1756684222000,0.7574,4389.8,4389.2,0.5727]
[1756684222299,0.7574,4390.3,4389.3,0.239]
[1756684222502,3.2078,4390.4,4390.2,0.5041]
[1756684222699,3.2078,4390.4,4389.1,3.2078]
[1756684222700,3.2078,4390.4,4390.3,1.0768]
[1756684223099,32.789,4391.6,4390.3,1.0768]
[1756684223100,0.7574,4391.1,4390.4,0.5727]
[1756684223302,0.7574,4391.1,4390.5,0.239]
[1756684224199,0.7574,4391.5,4391.0,1.0768]
[1756684224400,32.796,4393.0,4391.5,0.5041]
[1756684224401,0.7574,4391.6,4391.5,0.5041]
[1756684224602,3.2078,4392.2,4391.5,0.5041]
[1756684224603,0.9964,4392.1,4391.5,1.0768]
[1756684225197,1.2587,4391.6,4391.1,3.2078]
[1756684225504,1.2587,4391.2,4391.1,3.9509]
[1756684225698,1.2587,4391.2,4391.1,4.5072]
[1756684225900,0.7574,4391.2,4391.1,4.5072]
[1756684226205,0.7574,4392.0,4391.1,4.5072]
[1756684226803,0.239,4392.1,4391.1,4.5072]
[1756684227105,0.7574,4392.0,4391.1,4.5072]
[1756684227305,0.239,4392.1,4391.1,4.5072]
[1756684227508,0.7574,4392.0,4391.1,4.5072]
[1756684228304,0.7574,4392.0,4391.2,0.5563]
[1756684228510,0.7574,4392.0,4391.2,0.7953]
[1756684229705,0.7574,4392.0,4391.1,3.2078]
[1756684229706,0.7574,4391.2,4391.1,3.2078]
[1756684229898,3.2078,4391.5,4390.8,1.2994]
[1756684230209,0.7574,4392.0,4391.0,0.5563]
[1756684230708,0.7574,4392.7,4392.2,0.5041]
[1756684230904,3.9652,4392.8,4392.3,0.5563]
[1756684231208,3.2078,4392.8,4392.0,0.5563]
[1756684231402,3.9652,4392.8,4392.7,1.0604]
[1756684233006,4.4665,4392.8,4392.7,1.0604]
[1756684233211,4.4665,4392.8,4392.7,0.5041]
[1756684233512,0.7574,4392.7,4392.4,0.5563]
[1756684233705,1.2587,4392.5,4392.4,0.5563]
[1756684234110,1.2587,4392.5,4392.2,0.239]
[1756684234111,0.5013,4392.5,4392.2,0.239]
[1756684234410,0.239,4393.2,4392.1,1.2994]
[1756684234608,1.2587,4392.2,4392.1,0.5041]
[1756684234913,1.2587,4392.2,4392.1,0.7431]
[1756684235501,0.239,4393.2,4392.1,1.2994]
[1756684235713,0.7574,4393.1,4392.1,1.2994]
[1756684235908,0.239,4393.2,4392.1,1.2994]
[1756684236113,0.7574,4393.1,4392.1,1.2994]
[1756684236313,0.239,4393.2,4392.1,1.2994]
[1756684237214,0.7574,4393.1,4392.1,1.2994]
[1756684237914,0.239,4393.2,4392.1,1.2994]
[1756684238415,0.7245,4393.1,4392.1,1.2994]
[1756684238616,0.239,4393.2,4392.1,1.2994]
[1756684238915,0.7245,4393.1,4392.1,1.2994]
[1756684239108,0.239,4393.2,4392.1,1.2994]
[1756684239510,0.7245,4393.1,4392.1,1.0604]
[1756684239709,0.239,4393.2,4392.1,1.2984]
[1756684239906,0.7245,4393.1,4392.2,0.5454]
[1756684240212,0.18555264,4394.1,4392.1,0.5128]
[1756684240412,0.7245,4392.7,4391.7,0.5454]
[1756684241410,0.7245,4392.7,4391.8,3.2078]
[1756684241714,0.7245,4392.7,4391.9,0.5454]
[1756684243017,3.2078,4392.8,4391.9,1.0582]
[1756684243217,0.7245,4392.7,4391.9,1.0582]
[1756684243416,0.7245,4392.7,4391.9,0.5128]
[1756684243618,0.7245,4392.7,4392.0,0.5454]
[1756684243920,0.4724,4392.1,4392.0,1.0582]
[1756684244120,1.1969,4392.1,4392.0,1.0582]
[1756684246608,1.1969,4392.1,4392.0,0.5128]
[1756684247021,1.1969,4392.1,4392.0,1.0582]
[1756684248210,3.2078,4393.6,4392.0,3.7206]
[1756684248415,3.2078,4393.6,4391.4,40.8]
[1756684248416,3.2078,4394.6,4393.6,0.7454]
[1756684248615,3.2078,4394.6,4394.0,0.7454]
[1756684249421,3.6802,4394.6,4394.5,1.2582]
[1756684250420,4.4047,4394.6,4394.5,1.2582]
[1756684250817,0.7245,4394.5,4394.4,0.5128]
[1756684251022,1.1969,4394.5,4394.4,1.2582]
[1756684253423,0.4724,4394.5,4394.4,1.4972]
[1756684253723,1.1969,4395.0,4394.4,0.7454]
[1756684253923,0.4724,4394.5,4394.4,1.2582]
[1756684254120,1.1969,4394.5,4394.4,1.4962]
[1756684254319,0.7245,4395.0,4394.4,1.4962]
[1756684254527,0.7245,4395.0,4394.9,0.5128]
[1756684254823,1.1969,4395.0,4394.9,1.2582]
[1756684255125,1.1969,4395.0,4394.9,0.5128]
[1756684257815,1.1969,4395.0,4394.9,1.2582]
[1756684258020,3.2078,4395.1,4395.0,1.2582]
[1756684258230,3.2078,4395.6,4395.5,1.2582]
[1756684258520,3.2078,4395.6,4395.0,0.7454]
[1756684258521,4.4047,4395.6,4395.0,0.7454]
[1756684258730,0.7245,4395.1,4394.5,0.7454]
[1756684259024,3.2078,4396.2,4394.9,3.2078]
[1756684259230,0.7245,4396.1,4395.0,0.7454]
[1756684259428,0.4724,4395.1,4395.0,1.2582]
[1756684259927,1.1969,4395.1,4395.0,1.2582]
[1756684260421,3.2078,4395.7,4395.1,0.7454]
[1756684260618,3.2078,4395.7,4395.6,1.2582]
[1756684260816,3.2078,4395.7,4395.6,1.4962]
[1756684261024,0.7245,4396.5,4395.6,0.7508]
[1756684261329,0.7245,4396.5,4395.7,0.7454]
[1756684261523,0.7245,4396.5,4395.4,3.2078]
[1756684261727,0.4724,4395.3,4394.5,3.2078]
[1756684262024,0.4724,4395.3,4395.2,1.2582]
[1756684262025,1.1969,4395.3,4395.2,1.2582]
[1756684262226,1.1969,4395.3,4395.2,0.5128]
[1756684262626,1.1969,4395.3,4395.2,1.2582]
[1756684262923,1.1969,4395.3,4395.2,0.5128]
[1756684263227,1.1969,4395.3,4395.2,0.238]
[1756684263623,1.1969,4395.3,4394.8,0.7454]
[1756684263823,0.4724,4395.0,4394.9,0.238]
[1756684264029,1.1969,4395.0,4394.9,1.4962]
[1756684264618,0.4724,4395.0,4394.9,1.4962]
[1756684264826,1.1969,4394.6,4394.1,0.7454]
[1756684265027,1.1969,4394.2,4393.6,0.7454]
[1756684266325,3.2078,4394.7,4394.1,1.2582]
[1756684266326,3.9323,4394.7,4394.1,1.2582]
[1756684266526,1.1969,4394.2,4394.1,1.2582]
[1756684266727,0.4724,4394.2,4394.1,1.4962]
[1756684267631,0.4724,4394.2,4394.1,1.2582]
[1756684267832,0.4724,4394.2,4394.1,1.4962]
[1756684268425,3.2078,4394.7,4393.9,3.2078]
[1756684268626,3.9341,4394.7,4394.0,0.984]
[1756684269730,0.7263,4394.6,4394.0,0.984]
[1756684270133,0.7263,4394.6,4394.0,0.746]
[1756684270434,0.7263,4394.6,4394.1,0.984]
[1756684270633,1.1928,4394.2,4394.1,1.2398]
[1756684270928,1.1928,4394.2,4393.9,3.2078]
[1756684271129,1.1928,4394.0,4393.9,3.7016]
[1756684271330,0.4665,4394.0,4393.9,4.6856]
[1756684271533,0.7263,4394.4,4393.9,4.6856]
[1756684271727,0.7263,4394.6,4394.0,0.746]
[1756684272130,0.4665,4394.1,4394.0,1.2398]
[1756684272635,1.1928,4394.1,4394.0,1.2398]
[1756684274326,3.2078,4394.7,4394.0,1.2398]
[1756684274526,3.9341,4395.2,4394.1,0.746]
[1756684275127,3.9341,4395.2,4394.2,0.238]
[1756684275431,3.9341,4395.2,4394.3,0.746]
[1756684276434,0.4665,4394.4,4394.3,1.2398]
[1756684276634,1.1928,4394.4,4394.3,1.4778]
[1756684276831,1.1928,4394.4,4394.3,1.2398]
[1756684277027,1.1928,4394.4,4394.3,1.4778]
[1756684278238,3.2078,4395.2,4394.3,0.7318]
[1756684278436,0.7263,4395.1,4394.4,0.746]
[1756684278739,1.1928,4395.1,4394.6,0.746]
[1756684279034,0.7263,4395.0,4394.0,0.746]
[1756684279242,1.1928,4394.2,4394.1,1.2398]
[1756684279432,0.4665,4394.2,4394.1,1.4778]
[1756684279627,1.1928,4394.5,4394.4,0.4938]
[1756684279827,0.4665,4394.5,4394.4,1.2398]
[1756684280434,1.1928,4394.5,4394.4,0.4938]
[1756684280635,1.1928,4394.5,4394.4,0.238]
[1756684280837,1.1928,4394.5,4394.4,0.7318]
[1756684281038,1.1928,4394.5,4394.4,1.4778]
[1756684282535,1.1928,4394.5,4393.1,2.02642045]
[1756684282536,1.1928,4394.0,4393.1,2.02642045]
[1756684282733,1.1928,4392.8,4392.7,1.2398]
[1756684283442,1.1928,4392.8,4392.4,3.2078]
[1756684283639,0.4665,4392.8,4392.5,0.238]
[1756684283835,0.4665,4392.6,4392.4,3.2078]
[1756684284042,1.1928,4392.5,4392.4,3.2078]
[1756684284340,0.4665,4392.5,4392.4,4.6856]
[1756684284534,0.4665,4392.5,4392.4,3.7016]
[1756684284535,1.1928,4392.5,4392.4,3.7016]
[1756684284735,1.1928,4392.5,4392.0,0.746]
[1756684284936,1.1928,4392.5,4392.1,0.238]
[1756684285746,0.7263,4392.4,4392.0,0.238]
[1756684286041,1.1928,4391.4,4391.3,36.7298]
[1756684286239,1.1928,4391.4,4391.3,36.9678]
[1756684286646,1.1928,4391.4,4391.3,3.2078]
[1756684287143,1.1928,4391.4,4390.9,0.746]
[1756684287340,1.1928,4391.4,4390.8,3.2078]
[1756684287341,3.2078,4391.6,4391.3,0.4938]
[1756684287546,0.4665,4391.5,4391.4,1.2398]
[1756684287733,0.4665,4391.2,4391.1,1.2398]
[1756684288142,3.9341,4391.6,4391.0,0.238]
[1756684288337,4.4006,4391.6,4391.5,1.2398]
[1756684288844,3.2078,4391.6,4391.5,1.2398]
[1756684289945,0.7263,4392.1,4391.6,0.746]
[1756684290140,0.7263,4391.5,4390.9,0.746]
[1756684290334,0.7263,4391.4,4391.1,0.746]
[1756684290540,0.7263,4392.1,4391.4,0.746]
[1756684290741,0.7263,4392.1,4391.4,0.984]
[1756684291047,0.7263,4392.1,4392.0,1.2398]
[1756684291048,0.4665,4392.1,4392.0,1.2398]
[1756684292446,0.7263,4392.4,4392.3,1.2398]